[Event "Titled Tuesday Blitz March 07 Late 2023"]
[White "Licznerski, Lukasz"]
[Black "TimGrutter03"]
[WhiteFideId "1179250"]
[WhiteElo "2450"]
[BlackElo "2479"]
[Result "1-0"]
[Round "01"]
[TimeControl "180+2"]
[Date "2023.03.07"]
[WhiteClock "0:00:04"]
[BlackClock "0:00:03"]

1. e4 {[%clk 0:03:00]}  g6 {[%clk 0:02:56]} 2. d4 {[%clk 0:02:59]}  Bg7 {[%clk 0:02:54]} 3. Nf3 {[%clk 0:03:00]}  d6 {[%clk 0:02:48]} 4. Bc4 {[%clk 0:03:00]}  c6 {[%clk 0:02:41]} 5. Nc3 {[%clk 0:02:59]}  b5 {[%clk 0:02:40]} 6. Bb3 {[%clk 0:02:59]}  a5 {[%clk 0:02:37]} 7. a4 {[%clk 0:02:58]}  b4 {[%clk 0:02:28]} 8. Ne2 {[%clk 0:02:58]}  Nf6 {[%clk 0:02:24]} 9. e5 {[%clk 0:02:58]}  Nd5 {[%clk 0:02:23]} 10. h3 {[%clk 0:02:38]}  O-O {[%clk 0:02:15]} 11. O-O {[%clk 0:02:36]}  Ba6 {[%clk 0:02:04]} 12. Re1 {[%clk 0:02:35]}  dxe5 {[%clk 0:02:02]} 13. Nxe5 {[%clk 0:02:35]}  e6 {[%clk 0:01:45]} 14. Nf4 {[%clk 0:02:30]}  Qb6 {[%clk 0:01:38]} 15. Re4 {[%clk 0:01:46]}  Nf6 {[%clk 0:01:26]} 16. Re3 {[%clk 0:01:46]}  Nd5 {[%clk 0:01:26]} 17. Rg3 {[%clk 0:01:36]}  Ra7 {[%clk 0:01:10]} 18. h4 {[%clk 0:01:27]}  Nd7 {[%clk 0:01:02]} 19. Nxd5 {[%clk 0:01:24]}  cxd5 {[%clk 0:00:58]} 20. Nxd7 {[%clk 0:01:24]}  Rxd7 {[%clk 0:00:57]} 21. Be3 {[%clk 0:01:25]}  Bc4 {[%clk 0:00:47]} 22. h5 {[%clk 0:01:17]}  Bxb3 {[%clk 0:00:41]} 23. cxb3 {[%clk 0:01:18]}  Rc8 {[%clk 0:00:26]} 24. Qg4 {[%clk 0:01:18]}  Qd8 {[%clk 0:00:17]} 25. Rh3 {[%clk 0:01:14]}  Qf6 {[%clk 0:00:15]} 26. Rf3 {[%clk 0:01:13]}  Qe7 {[%clk 0:00:13]} 27. Bg5 {[%clk 0:01:07]}  f6 {[%clk 0:00:11]} 28. Be3 {[%clk 0:00:40]}  g5 {[%clk 0:00:10]} 29. Re1 {[%clk 0:00:37]}  h6 {[%clk 0:00:09]} 30. Bd2 {[%clk 0:00:36]}  Re8 {[%clk 0:00:09]} 31. Rfe3 {[%clk 0:00:33]}  f5 {[%clk 0:00:08]} 32. Qe2 {[%clk 0:00:32]}  Rd6 {[%clk 0:00:08]} 33. Qd3 {[%clk 0:00:28]}  Qf7 {[%clk 0:00:08]} 34. Rh3 {[%clk 0:00:18]}  g4 {[%clk 0:00:06]} 35. Rh1 {[%clk 0:00:18]}  Kh7 {[%clk 0:00:06]} 36. Bf4 {[%clk 0:00:18]}  Rc6 {[%clk 0:00:06]} 37. g3 {[%clk 0:00:18]}  Rec8 {[%clk 0:00:06]} 38. Kg2 {[%clk 0:00:17]}  Rc2 {[%clk 0:00:05]} 39. Rc1 {[%clk 0:00:09]}  Rxc1 {[%clk 0:00:06]} 40. Rxc1 {[%clk 0:00:09]}  Rxc1 {[%clk 0:00:06]} 41. Bxc1 {[%clk 0:00:10]}  Qc7 {[%clk 0:00:06]} 42. Bf4 {[%clk 0:00:09]}  Qb6 {[%clk 0:00:06]} 43. Be3 {[%clk 0:00:08]}  Qc6 {[%clk 0:00:07]} 44. Qb5 {[%clk 0:00:07]}  Qc2 {[%clk 0:00:05]} 45. Qxa5 {[%clk 0:00:05]}  Qxb3 {[%clk 0:00:04]} 46. Qb6 {[%clk 0:00:03]}  Qxb2 {[%clk 0:00:03]} 47. Qxe6 {[%clk 0:00:04]}  Qc2 {[%clk 0:00:02]} 48. a5 {[%clk 0:00:03]}  Qe4+ {[%clk 0:00:02]} 49. Qxe4 {[%clk 0:00:03]}  fxe4 {[%clk 0:00:03]} 50. a6 {[%clk 0:00:03]}  b3 {[%clk 0:00:03]} 51. a7 {[%clk 0:00:03]}  b2 {[%clk 0:00:03]} 52. a8=Q {[%clk 0:00:04]}  b1=Q {[%clk 0:00:04]} 53. Qxd5 {[%clk 0:00:04]}  Qd3 {[%clk 0:00:04]} 54. Qf5+ {[%clk 0:00:04]}  Kg8 {[%clk 0:00:05]} 55. Qxg4 {[%clk 0:00:04]}  Kf7 {[%clk 0:00:06]} 56. Qg6+ {[%clk 0:00:04]}  Kf8 {[%clk 0:00:05]} 57. Qf5+ {[%clk 0:00:04]}  Kg8 {[%clk 0:00:04]} 58. Qe6+ {[%clk 0:00:04]}  Kf8 {[%clk 0:00:04]} 59. d5 {[%clk 0:00:04]}  Qe2 {[%clk 0:00:03]} 60. Bc5# {[%clk 0:00:04]} 1-0


[Site "https://www.chess.com"]

[Event "Titled Tuesday Blitz March 07 Late 2023"]
[White "Prydun, Andriy"]
[Black "Keymer, Vincent"]
[WhiteFideId "14145898"]
[BlackFideId "12940690"]
[WhiteElo "2164"]
[BlackElo "2651"]
[Result "0-1"]
[Round "01"]
[TimeControl "180+2"]
[Date "2023.03.07"]
[WhiteClock "0:00:02"]
[BlackClock "0:00:21"]

1. d4 {[%clk 0:02:53]}  Nf6 {[%clk 0:02:59]} 2. Nc3 {[%clk 0:02:54]}  d5 {[%clk 0:02:58]} 3. Bf4 {[%clk 0:02:54]}  e6 {[%clk 0:02:49]} 4. e3 {[%clk 0:02:43]}  Be7 {[%clk 0:02:46]} 5. Bd3 {[%clk 0:02:40]}  O-O {[%clk 0:02:44]} 6. Nf3 {[%clk 0:02:39]}  c5 {[%clk 0:02:42]} 7. dxc5 {[%clk 0:02:39]}  Nbd7 {[%clk 0:02:36]} 8. b4 {[%clk 0:02:35]}  b6 {[%clk 0:02:30]} 9. Nb5 {[%clk 0:02:01]}  Ba6 {[%clk 0:02:14]} 10. Nc7 {[%clk 0:01:56]}  Bxd3 {[%clk 0:02:14]} 11. cxd3 {[%clk 0:01:56]}  Rc8 {[%clk 0:02:13]} 12. Nb5 {[%clk 0:01:43]}  bxc5 {[%clk 0:01:44]} 13. Nxa7 {[%clk 0:01:41]}  Ra8 {[%clk 0:01:23]} 14. Nc6 {[%clk 0:01:41]}  Qe8 {[%clk 0:01:24]} 15. b5 {[%clk 0:01:18]}  Nh5 {[%clk 0:01:14]} 16. a4 {[%clk 0:00:41]}  Nxf4 {[%clk 0:00:52]} 17. exf4 {[%clk 0:00:35]}  Bd6 {[%clk 0:00:52]} 18. O-O {[%clk 0:00:28]}  Bxf4 {[%clk 0:00:46]} 19. a5 {[%clk 0:00:29]}  Nb8 {[%clk 0:00:43]} 20. Nxb8 {[%clk 0:00:21]}  Qxb5 {[%clk 0:00:42]} 21. Rb1 {[%clk 0:00:18]}  Qe8 {[%clk 0:00:37]} 22. Qc2 {[%clk 0:00:05]}  Rxa5 {[%clk 0:00:28]} 23. Rb7 {[%clk 0:00:03]}  Bxb8 {[%clk 0:00:27]} 24. Rfb1 {[%clk 0:00:04]}  Bd6 {[%clk 0:00:25]} 25. Qc3 {[%clk 0:00:04]}  Qa8 {[%clk 0:00:23]} 26. g3 {[%clk 0:00:02]}  Ra3 {[%clk 0:00:22]} 27. Qc2 {[%clk 0:00:01]}  Ra2 {[%clk 0:00:23]} 28. Qc3 {[%clk 0:00:02]}  h6 {[%clk 0:00:23]} 29. R1b5 {[%clk 0:00:01]}  Qa3 {[%clk 0:00:21]} 30. Kg2 {[%clk 0:00:02]}  Qxc3 {[%clk 0:00:21]} 0-1


[Site "https://www.chess.com"]

[Event "Titled Tuesday Blitz March 07 Late 2023"]
[White "Indjic, Aleksandar"]
[Black "Dudzinski, Pawel"]
[WhiteFideId "911925"]
[BlackFideId "1117890"]
[WhiteElo "2614"]
[BlackElo "2099"]
[Result "1-0"]
[Round "01"]
[TimeControl "180+2"]
[Date "2023.03.07"]
[WhiteClock "0:01:11"]
[BlackClock "0:00:06"]

1. e4 {[%clk 0:02:58]}  c6 {[%clk 0:02:59]} 2. Nf3 {[%clk 0:02:56]}  d5 {[%clk 0:03:00]} 3. d3 {[%clk 0:02:56]}  g6 {[%clk 0:02:56]} 4. Nbd2 {[%clk 0:02:52]}  Bg7 {[%clk 0:02:57]} 5. e5 {[%clk 0:02:52]}  Bg4 {[%clk 0:02:55]} 6. d4 {[%clk 0:02:50]}  f6 {[%clk 0:02:48]} 7. h3 {[%clk 0:02:49]}  Bxf3 {[%clk 0:02:46]} 8. Nxf3 {[%clk 0:02:50]}  fxe5 {[%clk 0:02:47]} 9. Nxe5 {[%clk 0:02:39]}  Nd7 {[%clk 0:02:45]} 10. f4 {[%clk 0:02:38]}  Ngf6 {[%clk 0:02:42]} 11. Bd3 {[%clk 0:02:35]}  Qb6 {[%clk 0:02:40]} 12. c3 {[%clk 0:02:33]}  O-O {[%clk 0:02:32]} 13. Qe2 {[%clk 0:02:26]}  Nxe5 {[%clk 0:02:26]} 14. fxe5 {[%clk 0:02:24]}  Nh5 {[%clk 0:02:26]} 15. Qe3 {[%clk 0:01:59]}  Nf4 {[%clk 0:02:25]} 16. Bf1 {[%clk 0:01:54]}  Bh6 {[%clk 0:02:09]} 17. Qg1 {[%clk 0:01:52]}  Kg7 {[%clk 0:01:22]} 18. g3 {[%clk 0:01:50]}  Ne6 {[%clk 0:01:21]} 19. Bxh6+ {[%clk 0:01:49]}  Kxh6 {[%clk 0:01:22]} 20. Qe3+ {[%clk 0:01:48]}  Kg7 {[%clk 0:01:21]} 21. Rh2 {[%clk 0:01:49]}  Rf7 {[%clk 0:01:16]} 22. O-O-O {[%clk 0:01:48]}  Raf8 {[%clk 0:01:15]} 23. Be2 {[%clk 0:01:48]}  c5 {[%clk 0:01:08]} 24. h4 {[%clk 0:01:39]}  cxd4 {[%clk 0:01:07]} 25. cxd4 {[%clk 0:01:40]}  Rc8+ {[%clk 0:00:36]} 26. Kb1 {[%clk 0:01:40]}  a5 {[%clk 0:00:22]} 27. h5 {[%clk 0:01:36]}  g5 {[%clk 0:00:20]} 28. h6+ {[%clk 0:01:35]}  Kh8 {[%clk 0:00:19]} 29. Bg4 {[%clk 0:01:33]}  Rc4 {[%clk 0:00:15]} 30. Rhd2 {[%clk 0:01:32]}  Rf8 {[%clk 0:00:11]} 31. Be2 {[%clk 0:01:25]}  Rfc8 {[%clk 0:00:06]} 32. Bxc4 {[%clk 0:01:24]}  dxc4 {[%clk 0:00:06]} 33. Rc2 {[%clk 0:01:17]}  Qc6 {[%clk 0:00:05]} 34. d5 {[%clk 0:01:14]}  Qc5 {[%clk 0:00:05]} 35. Qxc5 {[%clk 0:01:14]}  Nxc5 {[%clk 0:00:06]} 36. Rxc4 {[%clk 0:01:14]}  b5 {[%clk 0:00:06]} 37. Rc2 {[%clk 0:01:11]} 1-0


[Site "https://www.chess.com"]

[Event "Titled Tuesday Blitz March 07 Late 2023"]
[White "Mortazavi, Ali"]
[Black "Rasulov, Vugar"]
[WhiteFideId "401323"]
[BlackFideId "13402390"]
[WhiteElo "2339"]
[BlackElo "2509"]
[Result "0-1"]
[Round "01"]
[TimeControl "180+2"]
[Date "2023.03.07"]
[WhiteClock "0:00:04"]
[BlackClock "0:00:38"]

1. Nf3 {[%clk 0:02:58]}  Nf6 {[%clk 0:02:59]} 2. g3 {[%clk 0:02:59]}  g6 {[%clk 0:02:59]} 3. Bg2 {[%clk 0:02:59]}  Bg7 {[%clk 0:03:00]} 4. O-O {[%clk 0:03:00]}  O-O {[%clk 0:03:00]} 5. d3 {[%clk 0:03:01]}  d6 {[%clk 0:02:54]} 6. e4 {[%clk 0:03:01]}  Nc6 {[%clk 0:02:53]} 7. Nc3 {[%clk 0:03:00]}  e5 {[%clk 0:02:53]} 8. a4 {[%clk 0:03:00]}  a6 {[%clk 0:02:53]} 9. h3 {[%clk 0:02:59]}  h6 {[%clk 0:02:52]} 10. Be3 {[%clk 0:02:55]}  Kh7 {[%clk 0:02:52]} 11. d4 {[%clk 0:02:53]}  exd4 {[%clk 0:02:44]} 12. Nxd4 {[%clk 0:02:53]}  Bd7 {[%clk 0:02:41]} 13. a5 {[%clk 0:02:53]}  Re8 {[%clk 0:02:39]} 14. Re1 {[%clk 0:02:53]}  Ne5 {[%clk 0:02:34]} 15. b3 {[%clk 0:02:48]}  c5 {[%clk 0:02:28]} 16. Nde2 {[%clk 0:02:45]}  Bb5 {[%clk 0:02:23]} 17. Nf4 {[%clk 0:02:30]}  Bc6 {[%clk 0:02:21]} 18. Qd2 {[%clk 0:02:28]}  h5 {[%clk 0:02:11]} 19. Nfd5 {[%clk 0:02:16]}  Bxd5 {[%clk 0:02:09]} 20. exd5 {[%clk 0:02:16]}  Qc7 {[%clk 0:01:58]} 21. Ra4 {[%clk 0:02:02]}  Re7 {[%clk 0:01:30]} 22. Bg5 {[%clk 0:01:53]}  Rae8 {[%clk 0:01:29]} 23. Rf1 {[%clk 0:01:53]}  Ned7 {[%clk 0:01:27]} 24. Kh2 {[%clk 0:01:29]}  Re5 {[%clk 0:01:25]} 25. f4 {[%clk 0:01:24]}  Re3 {[%clk 0:01:22]} 26. Rf3 {[%clk 0:01:14]}  Rxf3 {[%clk 0:01:13]} 27. Bxf3 {[%clk 0:01:14]}  Kg8 {[%clk 0:01:10]} 28. f5 {[%clk 0:01:04]}  Ne5 {[%clk 0:01:10]} 29. Bg2 {[%clk 0:01:04]}  c4 {[%clk 0:01:05]} 30. Bxf6 {[%clk 0:00:39]}  Bxf6 {[%clk 0:01:05]} 31. Ne4 {[%clk 0:00:39]}  Bg7 {[%clk 0:01:04]} 32. f6 {[%clk 0:00:40]}  Bf8 {[%clk 0:01:04]} 33. bxc4 {[%clk 0:00:31]}  Qd7 {[%clk 0:01:03]} 34. Rb4 {[%clk 0:00:30]}  Rc8 {[%clk 0:01:02]} 35. c5 {[%clk 0:00:26]}  dxc5 {[%clk 0:01:01]} 36. Rb1 {[%clk 0:00:25]}  Re8 {[%clk 0:00:56]} 37. Rd1 {[%clk 0:00:24]}  Qa4 {[%clk 0:00:53]} 38. d6 {[%clk 0:00:21]}  Qb4 {[%clk 0:00:49]} 39. c3 {[%clk 0:00:20]}  Qxa5 {[%clk 0:00:49]} 40. Qg5 {[%clk 0:00:19]}  Qa2 {[%clk 0:00:47]} 41. Rf1 {[%clk 0:00:16]}  Qe2 {[%clk 0:00:44]} 42. Rf2 {[%clk 0:00:15]}  Qe1 {[%clk 0:00:42]} 43. Qf4 {[%clk 0:00:09]}  Nd3 {[%clk 0:00:42]} 44. Qf3 {[%clk 0:00:08]}  Nxf2 {[%clk 0:00:42]} 45. Nxf2 {[%clk 0:00:08]}  Re3 {[%clk 0:00:40]} 46. d7 {[%clk 0:00:06]}  Rxf3 {[%clk 0:00:40]} 47. d8=Q {[%clk 0:00:04]}  Qxf2 {[%clk 0:00:38]} 48. Qd5 {[%clk 0:00:03]}  Qxg3+ {[%clk 0:00:38]} 49. Kh1 {[%clk 0:00:04]}  Rxc3 {[%clk 0:00:38]} 0-1


[Site "https://www.chess.com"]

[Event "Titled Tuesday Blitz March 07 Late 2023"]
[White "Tymrakiewicz, Rafal"]
[Black "Ibarra Jerez, Jose Carlos"]
[WhiteFideId "1108832"]
[BlackFideId "2226332"]
[WhiteElo "2151"]
[BlackElo "2638"]
[Result "0-1"]
[Round "01"]
[TimeControl "180+2"]
[Date "2023.03.07"]
[WhiteClock "0:00:01"]
[BlackClock "0:00:11"]

1. e4 {[%clk 0:03:00]}  c5 {[%clk 0:02:58]} 2. d4 {[%clk 0:02:59]}  cxd4 {[%clk 0:02:58]} 3. c3 {[%clk 0:02:59]}  Nf6 {[%clk 0:02:58]} 4. e5 {[%clk 0:02:59]}  Nd5 {[%clk 0:02:58]} 5. Nf3 {[%clk 0:03:00]}  Nc6 {[%clk 0:02:58]} 6. Bc4 {[%clk 0:02:57]}  Nb6 {[%clk 0:02:58]} 7. Bb3 {[%clk 0:02:57]}  g6 {[%clk 0:02:58]} 8. Ng5 {[%clk 0:02:42]}  d5 {[%clk 0:02:57]} 9. exd6 {[%clk 0:02:40]}  e6 {[%clk 0:02:57]} 10. cxd4 {[%clk 0:02:35]}  Qxd6 {[%clk 0:02:44]} 11. O-O {[%clk 0:02:19]}  Bg7 {[%clk 0:02:38]} 12. Nc3 {[%clk 0:01:46]}  Nxd4 {[%clk 0:02:34]} 13. Nce4 {[%clk 0:01:28]}  Qe7 {[%clk 0:02:30]} 14. Be3 {[%clk 0:01:17]}  Nxb3 {[%clk 0:02:25]} 15. axb3 {[%clk 0:01:10]}  O-O {[%clk 0:01:52]} 16. Bxb6 {[%clk 0:01:02]}  Qd7 {[%clk 0:00:58]} 17. Bc5 {[%clk 0:00:38]}  Rd8 {[%clk 0:00:54]} 18. Qxd7 {[%clk 0:00:26]}  Bxd7 {[%clk 0:00:55]} 19. Be7 {[%clk 0:00:20]}  Bb5 {[%clk 0:00:16]} 20. Bxd8 {[%clk 0:00:18]}  Bxf1 {[%clk 0:00:16]} 21. Bf6 {[%clk 0:00:15]}  Bb5 {[%clk 0:00:14]} 22. Rc1 {[%clk 0:00:15]}  Bc6 {[%clk 0:00:14]} 23. Bxg7 {[%clk 0:00:11]}  Kxg7 {[%clk 0:00:15]} 24. Nc5 {[%clk 0:00:09]}  Rd8 {[%clk 0:00:15]} 25. Nf3 {[%clk 0:00:08]}  Rd5 {[%clk 0:00:13]} 26. Na4 {[%clk 0:00:07]}  Rd3 {[%clk 0:00:13]} 27. Nc3 {[%clk 0:00:07]}  Bxf3 {[%clk 0:00:12]} 28. gxf3 {[%clk 0:00:08]}  Rxf3 {[%clk 0:00:13]} 29. Rd1 {[%clk 0:00:08]}  Rf4 {[%clk 0:00:13]} 30. Kg2 {[%clk 0:00:07]}  Rb4 {[%clk 0:00:13]} 31. Rd2 {[%clk 0:00:05]}  Rxb3 {[%clk 0:00:14]} 32. Ne2 {[%clk 0:00:06]}  e5 {[%clk 0:00:13]} 33. Nc3 {[%clk 0:00:05]}  f5 {[%clk 0:00:13]} 34. Rd7+ {[%clk 0:00:05]}  Kh6 {[%clk 0:00:13]} 35. Rd2 {[%clk 0:00:05]}  e4 {[%clk 0:00:13]} 36. Nd5 {[%clk 0:00:05]}  Kg5 {[%clk 0:00:13]} 37. Rc2 {[%clk 0:00:04]}  h5 {[%clk 0:00:12]} 38. Rd2 {[%clk 0:00:02]}  h4 {[%clk 0:00:12]} 39. h3 {[%clk 0:00:02]}  a5 {[%clk 0:00:11]} 40. Ne3 {[%clk 0:00:02]}  a4 {[%clk 0:00:10]} 41. Nd5 {[%clk 0:00:01]}  b5 {[%clk 0:00:10]} 42. Ne3 {[%clk 0:00:01]}  b4 {[%clk 0:00:11]} 43. Nd5 {[%clk 0:00:01]}  a3 {[%clk 0:00:11]} 44. bxa3 {[%clk 0:00:02]}  bxa3 {[%clk 0:00:12]} 45. Ra2 {[%clk 0:00:02]}  f4 {[%clk 0:00:13]} 46. Ne7 {[%clk 0:00:01]}  f3+ {[%clk 0:00:12]} 47. Kh2 {[%clk 0:00:01]}  Rb2 {[%clk 0:00:11]} 0-1


[Site "https://www.chess.com"]

[Event "Titled Tuesday Blitz March 07 Late 2023"]
[White "Svane, Frederik"]
[Black "Przybylski, Wojciech"]
[WhiteFideId "12923044"]
[BlackFideId "1117599"]
[WhiteElo "2502"]
[BlackElo "2222"]
[Result "1-0"]
[Round "01"]
[TimeControl "180+2"]
[Date "2023.03.07"]
[WhiteClock "0:00:09"]
[BlackClock "0:00:05"]

1. c4 {[%clk 0:03:00]}  e5 {[%clk 0:02:58]} 2. g3 {[%clk 0:03:00]}  Nf6 {[%clk 0:02:58]} 3. Bg2 {[%clk 0:02:59]}  d5 {[%clk 0:02:58]} 4. cxd5 {[%clk 0:02:59]}  Nxd5 {[%clk 0:02:59]} 5. Nc3 {[%clk 0:03:00]}  Nb6 {[%clk 0:02:59]} 6. Nf3 {[%clk 0:03:01]}  Nc6 {[%clk 0:03:00]} 7. O-O {[%clk 0:03:01]}  Be7 {[%clk 0:03:00]} 8. d3 {[%clk 0:03:02]}  O-O {[%clk 0:03:00]} 9. a3 {[%clk 0:03:02]}  Be6 {[%clk 0:03:01]} 10. Be3 {[%clk 0:03:03]}  f6 {[%clk 0:03:00]} 11. Rc1 {[%clk 0:03:02]}  a5 {[%clk 0:02:58]} 12. Bxb6 {[%clk 0:02:57]}  cxb6 {[%clk 0:02:57]} 13. Nd2 {[%clk 0:02:58]}  Rc8 {[%clk 0:02:50]} 14. Nc4 {[%clk 0:02:57]}  Kh8 {[%clk 0:02:35]} 15. Re1 {[%clk 0:02:54]}  f5 {[%clk 0:02:30]} 16. Qb3 {[%clk 0:02:42]}  Bc5 {[%clk 0:02:27]} 17. Na4 {[%clk 0:02:35]}  Nd4 {[%clk 0:01:43]} 18. Qd1 {[%clk 0:02:33]}  b5 {[%clk 0:01:21]} 19. Nxc5 {[%clk 0:02:16]}  Rxc5 {[%clk 0:01:22]} 20. Nd2 {[%clk 0:02:17]}  b6 {[%clk 0:01:10]} 21. e3 {[%clk 0:02:16]}  Rxc1 {[%clk 0:01:06]} 22. Qxc1 {[%clk 0:02:17]}  Nb3 {[%clk 0:01:06]} 23. Nxb3 {[%clk 0:02:17]}  Bxb3 {[%clk 0:01:06]} 24. Qc3 {[%clk 0:02:17]}  Bd5 {[%clk 0:01:02]} 25. e4 {[%clk 0:02:13]}  fxe4 {[%clk 0:00:56]} 26. dxe4 {[%clk 0:02:13]}  Bc4 {[%clk 0:00:56]} 27. Bf3 {[%clk 0:02:03]}  Qd4 {[%clk 0:00:47]} 28. Qxd4 {[%clk 0:01:50]}  exd4 {[%clk 0:00:48]} 29. Bd1 {[%clk 0:01:51]}  a4 {[%clk 0:00:32]} 30. f4 {[%clk 0:01:50]}  g6 {[%clk 0:00:30]} 31. Kf2 {[%clk 0:01:49]}  Kg7 {[%clk 0:00:29]} 32. e5 {[%clk 0:01:47]}  g5 {[%clk 0:00:25]} 33. Kf3 {[%clk 0:01:43]}  gxf4 {[%clk 0:00:21]} 34. gxf4 {[%clk 0:01:44]}  Bd5+ {[%clk 0:00:21]} 35. Kg3 {[%clk 0:01:41]}  d3 {[%clk 0:00:17]} 36. Rf1 {[%clk 0:00:41]}  Kg6 {[%clk 0:00:16]} 37. Bg4 {[%clk 0:00:29]}  Be4 {[%clk 0:00:16]} 38. Re1 {[%clk 0:00:23]}  Bf5 {[%clk 0:00:16]} 39. Rd1 {[%clk 0:00:23]}  Rd8 {[%clk 0:00:15]} 40. Rd2 {[%clk 0:00:23]}  h5 {[%clk 0:00:14]} 41. Bf3 {[%clk 0:00:20]}  Rd4 {[%clk 0:00:14]} 42. Bc6 {[%clk 0:00:19]}  Rc4 {[%clk 0:00:10]} 43. Bxb5 {[%clk 0:00:17]}  Rd4 {[%clk 0:00:10]} 44. Kf3 {[%clk 0:00:16]}  h4 {[%clk 0:00:09]} 45. Be8+ {[%clk 0:00:13]}  Kg7 {[%clk 0:00:08]} 46. Bc6 {[%clk 0:00:12]}  Rc4 {[%clk 0:00:08]} 47. Bd5 {[%clk 0:00:08]}  Rc2 {[%clk 0:00:07]} 48. Ke3 {[%clk 0:00:09]}  h3 {[%clk 0:00:06]} 49. Rxc2 {[%clk 0:00:07]}  dxc2 {[%clk 0:00:06]} 50. Kd2 {[%clk 0:00:08]}  Kg6 {[%clk 0:00:06]} 51. Bc6 {[%clk 0:00:08]}  Kh5 {[%clk 0:00:06]} 52. Bxa4 {[%clk 0:00:08]}  Kg4 {[%clk 0:00:06]} 53. Bxc2 {[%clk 0:00:09]}  Bd7 {[%clk 0:00:06]} 54. Ke3 {[%clk 0:00:05]}  Be6 {[%clk 0:00:04]} 55. Bg6 {[%clk 0:00:05]}  Bd7 {[%clk 0:00:03]} 56. Ke4 {[%clk 0:00:05]}  Bc6+ {[%clk 0:00:04]} 57. Ke3 {[%clk 0:00:05]}  Bd7 {[%clk 0:00:04]} 58. f5 {[%clk 0:00:06]}  Kg5 {[%clk 0:00:03]} 59. e6 {[%clk 0:00:06]}  Bc6 {[%clk 0:00:03]} 60. Kd4 {[%clk 0:00:06]}  Kf4 {[%clk 0:00:03]} 61. e7 {[%clk 0:00:06]}  Kf3 {[%clk 0:00:03]} 62. f6 {[%clk 0:00:06]}  Kg2 {[%clk 0:00:03]} 63. f7 {[%clk 0:00:07]}  Kxh2 {[%clk 0:00:04]} 64. f8=Q {[%clk 0:00:08]}  Kg2 {[%clk 0:00:04]} 65. Be4+ {[%clk 0:00:07]}  Bxe4 {[%clk 0:00:04]} 66. Kxe4 {[%clk 0:00:07]}  h2 {[%clk 0:00:04]} 67. Qf3+ {[%clk 0:00:07]}  Kg1 {[%clk 0:00:04]} 68. Ke3 {[%clk 0:00:08]}  b5 {[%clk 0:00:05]} 69. Qf2+ {[%clk 0:00:08]}  Kh1 {[%clk 0:00:05]} 70. Qf1# {[%clk 0:00:09]} 1-0


[Site "https://www.chess.com"]

[Event "Titled Tuesday Blitz March 07 Late 2023"]
[White "Tomaszewski, Kacper"]
[Black "Li, Ruifeng"]
[WhiteFideId "1127373"]
[BlackFideId "2061074"]
[WhiteElo "2211"]
[BlackElo "2441"]
[Result "0-1"]
[Round "01"]
[TimeControl "180+2"]
[Date "2023.03.07"]
[WhiteClock "0:01:52"]
[BlackClock "0:01:47"]

1. Nf3 {[%clk 0:02:59]}  d6 {[%clk 0:02:57]} 2. d4 {[%clk 0:02:58]}  g6 {[%clk 0:02:55]} 3. g3 {[%clk 0:02:58]}  Bg7 {[%clk 0:02:55]} 4. Bg2 {[%clk 0:02:59]}  f5 {[%clk 0:02:55]} 5. O-O {[%clk 0:02:58]}  Nf6 {[%clk 0:02:55]} 6. Nbd2 {[%clk 0:02:58]}  O-O {[%clk 0:02:56]} 7. Re1 {[%clk 0:02:59]}  Nc6 {[%clk 0:02:52]} 8. e4 {[%clk 0:02:57]}  fxe4 {[%clk 0:02:50]} 9. Nxe4 {[%clk 0:02:57]}  Nxe4 {[%clk 0:02:51]} 10. Rxe4 {[%clk 0:02:58]}  Bf5 {[%clk 0:02:51]} 11. Re1 {[%clk 0:02:56]}  Nb4 {[%clk 0:02:37]} 12. Re2 {[%clk 0:02:15]}  Bg4 {[%clk 0:02:36]} 13. Re3 {[%clk 0:02:13]}  e5 {[%clk 0:02:12]} 14. Rb3 {[%clk 0:02:01]}  e4 {[%clk 0:02:09]} 15. Rxb4 {[%clk 0:01:57]}  Bxf3 {[%clk 0:01:48]} 16. Bh3 {[%clk 0:01:52]}  Bxd1 {[%clk 0:01:47]} 0-1


[Site "https://www.chess.com"]

[Event "Titled Tuesday Blitz March 07 Late 2023"]
[White "Zhigalko, Sergei"]
[Black "Hernandez Sanchez, Elvis De La Caridad"]
[WhiteFideId "13502956"]
[BlackFideId "6400353"]
[WhiteElo "2626"]
[BlackElo "2460"]
[Result "1-0"]
[Round "01"]
[TimeControl "180+2"]
[Date "2023.03.07"]
[WhiteClock "0:01:36"]
[BlackClock "0:01:19"]

1. e4 {[%clk 0:03:00]}  e6 {[%clk 0:02:58]} 2. d4 {[%clk 0:03:01]}  d5 {[%clk 0:02:57]} 3. e5 {[%clk 0:03:01]}  c5 {[%clk 0:02:57]} 4. c3 {[%clk 0:03:02]}  Nc6 {[%clk 0:02:56]} 5. Nf3 {[%clk 0:03:02]}  Nh6 {[%clk 0:02:55]} 6. Na3 {[%clk 0:02:55]}  cxd4 {[%clk 0:02:52]} 7. cxd4 {[%clk 0:02:56]}  Bxa3 {[%clk 0:02:49]} 8. bxa3 {[%clk 0:02:56]}  Nf5 {[%clk 0:02:48]} 9. Bd3 {[%clk 0:02:56]}  Nfxd4 {[%clk 0:02:39]} 10. Nxd4 {[%clk 0:02:56]}  Nxd4 {[%clk 0:02:40]} 11. Qg4 {[%clk 0:02:55]}  Nc6 {[%clk 0:02:11]} 12. Qxg7 {[%clk 0:02:52]}  Kd7 {[%clk 0:02:07]} 13. Qxf7+ {[%clk 0:02:37]}  Qe7 {[%clk 0:02:07]} 14. Qxe7+ {[%clk 0:02:36]}  Nxe7 {[%clk 0:02:06]} 15. O-O {[%clk 0:02:02]}  a6 {[%clk 0:01:54]} 16. a4 {[%clk 0:01:50]}  Nc6 {[%clk 0:01:50]} 17. f4 {[%clk 0:01:50]}  Kc7 {[%clk 0:01:44]} 18. Ba3 {[%clk 0:01:50]}  Bd7 {[%clk 0:01:42]} 19. Rab1 {[%clk 0:01:38]}  Rae8 {[%clk 0:01:29]} 20. Bd6+ {[%clk 0:01:38]}  Kc8 {[%clk 0:01:28]} 21. Rfc1 {[%clk 0:01:39]}  h5 {[%clk 0:01:19]} 22. Bxa6 {[%clk 0:01:36]} 1-0


[Site "https://www.chess.com"]